Cogmind - Beta 11.1 @@@ ROGUE MODE // 2022.09.27 @ 00:21:27 Player: Coronach Result: Destroyed by as-92151 with Assembled Rifle Performance ------------- Evolutions (0) 0 Regions Visited (2) 400 Robots Destroyed (14) 70 Value Destroyed (162) 162 Prototype IDs (0) 0 Alien Tech Used (0) 0 Bonus (0) 0 TOTAL SCORE: 632 Bonus ------- None Cogmind --------- Core Integrity 0/250 Matter 258/300 Energy 100/100 System Corruption 2% Temperature Cool (0) Movement Rolling (100) Location -10/Mines Parts ------- > --- POWER (1) -------- (None) > --- PROPULSION (2) --- Compact Wheel > --- UTILITY (2) ------ (None) > --- WEAPON (2) ------- (None) > --- INVENTORY (5) ---- Compact Wheel Large Storage Unit Signal Interpreter Seismic Detector Mining Laser Peak State ------------ > --- POWER ------------ Ion Engine > --- PROPULSION ------- Compact Wheel Compact Wheel > --- UTILITY ---------- Large Storage Unit Improved Terrain Scanner > --- WEAPON ----------- Beam Cannon Assault Rifle > --- INVENTORY -------- Light Ion Engine Wheel Large Storage Unit Huge Storage Unit High-capacity Matter Pod Signal Interpreter Seismic Detector Light Armor Plating Light Armor Plating Grenade Launcher [Rating: 10] Favorites ----------- Power Ion Engine Engine Ion Engine Propulsion Compact Wheel Leg Aluminum Leg Wheel Compact Wheel Utility Improved Terrain Scanner Device Improved Terrain Scanner Storage Large Storage Unit Weapon Assault Rifle Energy Cannon Beam Cannon Ballistic Gun Assault Rifle Launcher Grenade Launcher Build | -11 -10 -10 ------- Run | Scr Mat Min Slots Evolved . | . . . Power . | . . . Propulsion . | . . . Utility . | . . . Weapon . | . . . Parts Attached 10 | 4 6 . Power 1 | 1 . . Engine 1 | 1 . . Core . | . . . Reactor . | . . . Propulsion 2 | 2 . . Treads . | . . . Leg . | . . . Wheel 2 | 2 . . Hover . | . . . Flight . | . . . Utility 3 | 1 2 . Device 1 | 1 . . Storage 2 | . 2 . Processor . | . . . Hackware . | . . . Protection . | . . . Artifact . | . . . Weapon 4 | . 4 . Energy Gun . | . . . Energy Cannon 1 | . 1 . Ballistic Gun 1 | . 1 . Ballistic Cannon . | . . . Launcher 2 | . 2 . Special Weapon . | . . . Impact Weapon . | . . . Slashing Weapon . | . . . Piercing Weapon . | . . . Special Melee Weapon . | . . . Unidentified Prototypes . | . . . Parts Lost 5 | . . 5 Power 1 | . . 1 Propulsion 1 | . . 1 Utility 1 | . . 1 Weapon 2 | . . 2 Highest Loss Streak 5 | . . 5 To Critical Strikes . | . . . Average Slot Usage (%) 98 | . 99 49 Engine 13 | . 14 7 Wheel 27 | . 28 21 Device 13 | . 14 7 Storage 13 | . 14 7 Energy Cannon 9 | . 9 . Ballistic Gun 13 | . 13 7 Launcher 4 | . 5 . Naked Turns . | . . . Heaviest Build 92 | 14 92 31 Greatest Support 32 | 32 32 32 Greatest Overweight (x) 2 | . 2 . Average Overweight (x) . | . . . Largest Inventory Capacity 25 | 8 25 15 Average Capacity 12 | 8 12 10 Most Carried 13 | 7 13 13 Average Carried 7 | 4 7 8 Final Capacity 15 | 8 15 5 Final Carried 13 | 3 13 5 Class Distribution -------------------- 100% | Mutant Dominant Class ---------------- Mutant | -10/Materials Mutant | -10/Mines Resources | -11 -10 -10 ----------- Run | Scr Mat Min Matter Collected 395 | 252 115 28 Remotely . | . . . Salvage Created 223 | 65 130 28 Parts 26 | 6 16 4 Haulers Intercepted 1 | . 1 . Recyclers Shooed . | . . . Parts Field Recycled . | . . . Retrieved Matter . | . . . Parts Self-Destructed . | . . . Prevented . | . . . Kills | -11 -10 -10 ------- Run | Scr Mat Min Combat Hostiles Destroyed 9 | . 6 3 AOE 8 | . 5 3 Classes Destroyed 6 | 2 4 . Tunneler 2 | 1 1 . Hauler 1 | . 1 . Recycler 1 | 1 . . Watcher 1 | . 1 . Swarmer 8 | . 5 3 Grunt 1 | . 1 . Best Kill Streak 6 | 2 3 6 Combat Bots Only 6 | . 3 6 Max Kills in Single Turn 3 | 1 2 3 Gunslinging . | . . . Exploded 3 | . 2 3 Melee . | . . . Uniques/NPCs Destroyed . | . . . Combat | -11 -10 -10 -------- Run | Scr Mat Min Damage Taken 587 | . 170 417 Core 252 | . 12 240 Absorbed by Shields . | . . . Core Remaining (%) 100 | 100 . . Volleys Fired 26 | 3 21 2 Largest 2 | 2 2 1 Hottest 80 | 40 80 30 Shots Fired 44 | 6 36 2 Gun 21 | 6 15 . Cannon 13 | . 13 . Launcher 10 | . 8 2 Special . | . . . Kinetic 21 | 6 15 . Thermal 13 | . 13 . Explosive 10 | . 8 2 Electromagnetic . | . . . Robot Hit Streak 3 | 2 3 . Robot Miss Streak 2 | 1 2 1 Penetration Max . | . . . Secondary Targets . | . . . Shots Hit Robots 19 | 4 15 . Core Hits 15 | 3 8 4 Critical Kills 1 | . 1 . Critical Parts Destroyed . | . . . Critical Strikes 1 | . 1 . Meltdown 1 | . 1 . Melee Attacks . | . . . Impact . | . . . Slashing . | . . . Piercing . | . . . Sneak Attacks . | . . . Combat Hostiles . | . . . Follow-up Attacks . | . . . Damage Inflicted 910 | 36 690 184 Guns 119 | 36 83 . Cannons 141 | . 141 . Explosions 650 | . 466 184 Melee . | . . . Ramming . | . . . Kinetic 119 | 36 83 . Thermal 141 | . 141 . Explosive 650 | . 466 184 Electromagnetic . | . . . Impact . | . . . Slashing . | . . . Piercing . | . . . Highest Corruption 2 | . . 2 Average Corruption 2 | . . 2 Corruption Purged . | . . . Corruption Blocked . | . . . Overload Shots . | . . . Overflow Damage 28 | . 28 . Projectiles . | . . . Explosions 28 | . 28 . Melee . | . . . Knockbacks . | . . . Impact . | . . . Kinetic . | . . . Secondary . | . . . Self-Inflicted Damage 61 | . . 61 Shots 2 | . . 2 Rammed . | . . . Targets Rammed . | . . . Kicked . | . . . Crushed . | . . . Highest Temperature 124 | . 124 . Average Temperature 51 | . 51 . Received Heat Transfer 112 | . 12 100 Siege Activations . | . . . Robots Corrupted . | . . . Combat Hostiles . | . . . Parts Fried . | . . . Impact Corruptions . | . . . Robots Melted 1 | . 1 . Combat Hostiles 1 | . 1 . Parts Melted 2 | . 2 . Heat Transferred 296 | . 296 . Parts Sabotaged . | . . . Parts Stolen . | . . . Parts Stripped . | . . . Power Chain Reactions . | . . . Missiles Intercepted . | . . . Alert | -11 -10 -10 ------- Run | Scr Mat Min Peak Influence 217 | 10 195 217 Initial 75 | . 6 75 Average 72 | 8 73 181 Maximum Alert Level 1 | . . 1 Low Security (%) 99 | 100 100 78 Level 1 . | . . 21 Level 2 . | . . . Level 3 . | . . . Level 4 . | . . . Level 5 . | . . . High Security . | . . . Max Security . | . . . Squads Dispatched 2 | . 2 . Investigation . | . . . Extermination . | . . . Reinforcement 2 | . 2 . Assault . | . . . Garrison . | . . . Intercept . | . . . Searches Triggered . | . . . Construction Impeded . | . . . Haulers Reinforced . | . . . Active Scanning Responses . | . . . Cargo Convoy Interrupts . | . . . Stealth | -11 -10 -10 --------- Run | Scr Mat Min Distress Signals . | . . . Communications Jammed . | . . . Distress Signals . | . . . Times Spotted 29 | . 11 18 Peak Tracking Total 19 | . 5 19 Tactical Retreats . | . . . Traps | -11 -10 -10 ------- Run | Scr Mat Min Traps Triggered . | . . . Indirectly . | . . . Trap Hack Attempts . | . . . Triggered . | . . . Disarmed . | . . . Reprogrammed . | . . . Reused . | . . . Traps Extracted . | . . . Installed . | . . . Triggered . | . . . Machines | -11 -10 -10 ---------- Run | Scr Mat Min Machines Disabled 1 | . . 1 Max in Single Turn 1 | . . 1 Machines Sabotaged . | . . . Garrisons Compromised . | . . . Overloaded Fab Kills . | . . . Hacking | -11 -10 -10 --------- Run | Scr Mat Min Machines Accessed 2 | . 2 . Terminals 1 | . 1 . Fabricators . | . . . Repair Stations . | . . . Recycling Units 1 | . 1 . Scanalyzers . | . . . Garrison Access . | . . . Total Hacks 8 | . 8 . Successful 4 | . 4 . Failed 4 | . 4 . Catastrophic 1 | . 1 . Database Lockouts . | . . . Manual 6 | . 6 . Terminals 3 | . 3 . Fabricators . | . . . Repair Stations . | . . . Recycling Units 5 | . 5 . Scanalyzers . | . . . Garrison Access . | . . . Terminal Hacks 1 | . 1 . Zone Layout 1 | . 1 . Fabricator Hacks . | . . . Repair Station Hacks . | . . . Recycling Unit Hacks . | . . . Scanalyzer . | . . . Garrison Access Hacks . | . . . Unauthorized Hacks 3 | . 3 . Terminals . | . . . Fabricators . | . . . Repair Stations . | . . . Recycling Units 3 | . 3 . Monitor 1 | . 1 . Reject 1 | . 1 . Recyclers 1 | . 1 . Scanalyzers . | . . . Garrison Access . | . . . Data Cores Recovered . | . . . Used . | . . . Hacking Detections 2 | . 2 . Full Trace Events . | . . . Feedback Events . | . . . Feedback Blocked . | . . . Robot Schematics Acquired . | . . . Robots Built . | . . . Authchips . | . . . Time . | . . . Total Robot Build Rating . | . . . Part Schematics Acquired . | . . . Parts Built . | . . . Authchips . | . . . Time . | . . . Total Part Build Rating . | . . . Parts Repaired . | . . . Time . | . . . Parts Recycled . | . . . Recycled Matter . | . . . Retrieved Matter . | . . . Retrieved Components . | . . . Parts Scanalyzed . | . . . Part Schematics Acquired . | . . . Parts Damaged . | . . . Bothacking | -11 -10 -10 ------------ Run | Scr Mat Min Used RIF Installer . | . . . Robots Hacked . | . . . Non-combat . | . . . Combat . | . . . Robot Hacks Applied . | . . . Relay Couplers Released . | . . . Fabnet Peak Effective % . | . . . Robots Rewired . | . . . Allies Hacked . | . . . Hacks Repelled . | . . . Allies | -11 -10 -10 -------- Run | Scr Mat Min Total Allies . | . . . Largest Group . | . . . Highest-Rated Group . | . . . Highest-Rated Ally . | . . . Total Orders . | . . . Ally Attacks . | . . . Total Damage . | . . . Kills . | . . . Allies Corrupted . | . . . Allies Melted . | . . . Intel | -11 -10 -10 ------- Run | Scr Mat Min Robot Analysis Total . | . . . Derelict Logs Recovered . | . . . Drone Launches . | . . . Drone Recoveries . | . . . Exploration | -11 -10 -10 ------------- Run | Scr Mat Min Turns Passed 631 | 35 577 19 Spaces Moved 486 | 17 459 10 Core . | . . . Treads . | . . . Legs 4 | 4 . . Wheels 482 | 13 459 10 Hover . | . . . Flight . | . . . Fastest Speed 100 | 100 100 100 Average Speed 102 | 104 102 100 Slowest Speed 130 | 120 130 100 Overloaded Moves . | . . . Propulsion Burnouts . | . . . Robots Hopped . | . . . Cave-ins Triggered . | . . . Exploration Rate (%) 24 | 4 65 4 Regions Visited 2 Branch Regions 1 Pre-discovered Areas . | . . . Known Exits Taken . | . . . Unknown Exits Taken 2 | 1 1 . Scrap Searched . | . . . Spaces Dug 17 | . 6 11 Terrain Destroyed 64 | . 45 19 Melee . | . . . Projectile . | . . . AOE 64 | . 45 19 Terrain Rammed . | . . . Walls Destroyed . | . . . Machines Disabled . | . . . Actions | -11 -10 -10 --------- Run | Scr Mat Min Total 580 | 30 529 21 Wait 30 | . 30 . Move 484 | 16 458 10 Hop . | . . . Pick Up 13 | 2 11 . Fast Attach 2 | 1 1 . Attach 2 | 2 . . Detach . | . . . Swap 6 | 1 5 . Drop 17 | 5 3 9 Fire 26 | 3 21 2 Melee . | . . . Ram . | . . . Kick . | . . . Crush . | . . . Escape Stasis . | . . . Rewire . | . . . Trap . | . . . Miscellaneous . | . . . Route ------- -11/Scrapyard -10/Materials -10/Mines History --------- Turn | Location | Event 10 | -11/Scrapyard | Discovered new exit (range 3) 36 | -11/Scrapyard | Entered Materials 316 | -10/Materials | Build established: Mutant 591 | -10/Materials | Discovered new exit (range 9) 613 | -10/Materials | Entered Mines 614 | -10/Mines | Assembled infested the area 627 | -10/Mines | Core integrity fell below 50% 631 | -10/Mines | Core integrity fell below 20% 632 | -10/Mines | Destroyed by as-92151 with Assembled Rifle Last Messages --------------- 00619_ Dropped Beam Cannon. 00620_ Dropped Lgt. Ion Engine. 00621_ Dropped Wheel. 00621_ Imp. Terrain Scanner destroyed. 00621_ Assault Rifle destroyed. 00621_ Dropped Huge Storage Unit. 00622_ Dropped Sml. Battery. 00622_ Dropped Hcp. Matter Pod. 00623_ Dropped Lgt. Armor Plating. 00623_ Com. Wheel destroyed. 00623_ System corrupted by crushing effect (+2). 00623_ Dropped Lgt. Armor Plating. 00623_ Ion Engine destroyed. 00624_ Dropped Lrg. Storage Unit. 00625_ The unstable cave ceiling collapses. 00625_ Lrg. Storage Unit crushed. 00625_ as-15736 destroyed. 00629_ Acquired 10 matter. 00630_ Acquired 7 matter. 00631_ Acquired 11 matter. Map ----- +----------------------------------------------------+ | | | | | | | ?????????????????????????????#?????? | | ???????????????????????????????????? | | ???????????????????????????????????? | | ???????????????????????????????????? | | ???????????????????????????????????? | | ???????????????????????????????????? | | ???????????????????????????????????? | | ????????????????????????????????#??? | | ???????????????????????????????????? | | ?????????????????????#?????????????? | | ????????????????????###????????????? | | ???????????????????## #???????????? | | ???????????????????# #?????????#? | | ???????????????##### #######???? | | ?????????????? #???? | | ?????????????????? " % !=!#???? | | ?????????????????????????# #!]!#???? | | ???????????????????????###a##a!#???? | | ???????????????????????# a aaa#???? | | ???????????????????????# * aa #???? | | ???????????????????????# aa a #???? | | ???????????????????????# a #???? | | ???????????????????????#=@= #???? | | ???????????????????????# ["" #???? | | ???????????????????????##### ###???? | | ???????????????????????????###?????? | | ???????????????????????????????????? | | ???????????????????????????????????? | | ????????????????????#??????????????? | | ???????????????????????????????????? | | ???????????????????????????????????? | | ???????????????????????????????????? | | ???????????????????????????????????? | | ???????????????????????????????????? | | ???????????????????????????????????? | | ???????????????????????????????????? | | ???????????????????????????????????? | | ???????????????????????????????????? | | ???????????????????????????????????? | | ???????????????????????????????????? | | ???????????????????????????????????? | | ???????????????????????????????????? | | ???????????????????????????????????? | | ???????????????????????????????????? | | ???????????????????????????????????? | | ???????????????????????????????????? | | ???????????????????????????????????? | +----------------------------------------------------+ Best States ------------- Heat Dissipation 25 Energy Generation 10 Energy Capacity 250 Matter Stores 300 Matter Capacity 300 Sight Range 16 Terrain Scan Range 16 Terrain Scan Density 10 Evasion (%) 40 Item Schematics ----------------- None Robot Schematics ------------------ None Fabricated ------------ Nothing Alien Tech Used ----------------- None Achievements -------------- None Challenges ------------ None Game ------ Seed HypercooledLightLog Manual? 0 Play Time 00:14:42 Cumulative 209.0 hours Start 2022.09.27 @ 00:08:40 End 2022.09.27 @ 00:21:27 Sessions 1 Manual Loads 0 Difficulty Rogue Special Mode None Game No. 74 Rogue 71 Adventurer 0 Explorer 3 Win Type - Total 3 Types 2/0/0/1/0/0/0/0/0 Lore% 46 Gallery% 67 Achievement% 49 Wizard Run 0 Options --------- ASCII 0 Keyboard 0 Movement Numpad Keybinds 0 Fullscreen 2 Font 18/X11 Map View 76x50 Tactical HUD 1 Map Filters NONE Filters NONE Steam 1 RUN: 02345867-5567-410b-a646-fdf25eecc726